[Event "Titled Tuesday Blitz January 18 2022"]
[White "Brunner, Nicolas"]
[Black "Wagner, Dennis"]
[WhiteFideId "620246"]
[BlackFideId "24650684"]
[WhiteElo "2372"]
[BlackElo "2355"]
[Result "0-1"]
[Round "10"]
[TimeControl "180+1"]
[Date "2022.01.18"]
[WhiteClock "0:00:02"]
[BlackClock "0:00:08"]

1. d4 {[%clk 0:03:00]}  Nf6 {[%clk 0:02:59]} 2. c4 {[%clk 0:03:01]}  e6 {[%clk 0:03:00]} 3. g3 {[%clk 0:03:00]}  d5 {[%clk 0:02:59]} 4. Nf3 {[%clk 0:03:00]}  Bb4+ {[%clk 0:03:00]} 5. Bd2 {[%clk 0:03:00]}  Be7 {[%clk 0:03:00]} 6. Bg2 {[%clk 0:02:59]}  O-O {[%clk 0:03:01]} 7. O-O {[%clk 0:02:59]}  Nbd7 {[%clk 0:03:01]} 8. Qc2 {[%clk 0:02:58]}  c6 {[%clk 0:03:01]} 9. Bf4 {[%clk 0:02:47]}  b6 {[%clk 0:02:59]} 10. Rd1 {[%clk 0:02:46]}  Bb7 {[%clk 0:02:58]} 11. Nc3 {[%clk 0:02:46]}  dxc4 {[%clk 0:02:53]} 12. Nd2 {[%clk 0:02:46]}  Nd5 {[%clk 0:02:51]} 13. Nxc4 {[%clk 0:02:45]}  Nxf4 {[%clk 0:02:52]} 14. gxf4 {[%clk 0:02:45]}  Qc7 {[%clk 0:02:48]} 15. e3 {[%clk 0:02:45]}  Rad8 {[%clk 0:02:27]} 16. Rac1 {[%clk 0:02:43]}  c5 {[%clk 0:02:25]} 17. Bxb7 {[%clk 0:02:21]}  Qxb7 {[%clk 0:02:25]} 18. Qe4 {[%clk 0:02:21]}  Qb8 {[%clk 0:02:04]} 19. Qf3 {[%clk 0:02:07]}  cxd4 {[%clk 0:01:51]} 20. Rxd4 {[%clk 0:02:03]}  Bf6 {[%clk 0:01:48]} 21. Rdd1 {[%clk 0:01:55]}  Bxc3 {[%clk 0:01:48]} 22. Rxc3 {[%clk 0:01:51]}  Nc5 {[%clk 0:01:47]} 23. Ne5 {[%clk 0:01:34]}  Rxd1+ {[%clk 0:01:20]} 24. Qxd1 {[%clk 0:01:33]}  Rd8 {[%clk 0:01:21]} 25. Qh5 {[%clk 0:01:28]}  g6 {[%clk 0:01:20]} 26. Qf3 {[%clk 0:01:16]}  a5 {[%clk 0:01:07]} 27. Nc6 {[%clk 0:01:05]}  Qb7 {[%clk 0:01:07]} 28. Kg2 {[%clk 0:00:52]}  Rd2 {[%clk 0:01:05]} 29. b4 {[%clk 0:00:28]}  Nd3 {[%clk 0:00:52]} 30. Rxd3 {[%clk 0:00:27]}  Rxd3 {[%clk 0:00:52]} 31. bxa5 {[%clk 0:00:20]}  bxa5 {[%clk 0:00:53]} 32. Nxa5 {[%clk 0:00:19]}  Qxf3+ {[%clk 0:00:52]} 33. Kxf3 {[%clk 0:00:19]}  Ra3 {[%clk 0:00:53]} 34. Nc6 {[%clk 0:00:20]}  Rxa2 {[%clk 0:00:54]} 35. h4 {[%clk 0:00:19]}  Kg7 {[%clk 0:00:52]} 36. Ne5 {[%clk 0:00:19]}  Ra1 {[%clk 0:00:51]} 37. Kg3 {[%clk 0:00:18]}  Rg1+ {[%clk 0:00:51]} 38. Kh3 {[%clk 0:00:18]}  Rh1+ {[%clk 0:00:51]} 39. Kg3 {[%clk 0:00:18]}  Kf6 {[%clk 0:00:45]} 40. Nf3 {[%clk 0:00:18]}  h6 {[%clk 0:00:40]} 41. Kg2 {[%clk 0:00:18]}  Ra1 {[%clk 0:00:40]} 42. Kg3 {[%clk 0:00:18]}  Kf5 {[%clk 0:00:40]} 43. Ne5 {[%clk 0:00:18]}  Ra7 {[%clk 0:00:37]} 44. Nc6 {[%clk 0:00:17]}  Rc7 {[%clk 0:00:35]} 45. Nd4+ {[%clk 0:00:15]}  Ke4 {[%clk 0:00:34]} 46. Nb5 {[%clk 0:00:14]}  Rc6 {[%clk 0:00:29]} 47. Nd4 {[%clk 0:00:12]}  Rc1 {[%clk 0:00:28]} 48. Kg2 {[%clk 0:00:10]}  e5 {[%clk 0:00:21]} 49. fxe5 {[%clk 0:00:10]}  Kxe5 {[%clk 0:00:22]} 50. Nf3+ {[%clk 0:00:10]}  Kf5 {[%clk 0:00:21]} 51. Kg3 {[%clk 0:00:08]}  Ra1 {[%clk 0:00:20]} 52. Nd4+ {[%clk 0:00:08]}  Ke4 {[%clk 0:00:21]} 53. Nb5 {[%clk 0:00:07]}  Rg1+ {[%clk 0:00:20]} 54. Kh2 {[%clk 0:00:06]}  Rg4 {[%clk 0:00:19]} 55. Nd6+ {[%clk 0:00:06]}  Kf3 {[%clk 0:00:19]} 56. Nxf7 {[%clk 0:00:04]}  Kxf2 {[%clk 0:00:16]} 57. Kh3 {[%clk 0:00:01]}  Rg3+ {[%clk 0:00:15]} 58. Kh2 {[%clk 0:00:02]}  Rxe3 {[%clk 0:00:15]} 59. Nxh6 {[%clk 0:00:02]}  Re4 {[%clk 0:00:13]} 60. Kh3 {[%clk 0:00:03]}  Kf3 {[%clk 0:00:11]} 61. Nf7 {[%clk 0:00:03]}  Re1 {[%clk 0:00:11]} 62. Kh2 {[%clk 0:00:03]}  Kg4 {[%clk 0:00:09]} 63. Nh8 {[%clk 0:00:03]}  Kh5 {[%clk 0:00:08]} 64. Kg3 {[%clk 0:00:03]}  Re7 {[%clk 0:00:07]} 65. Kf4 {[%clk 0:00:02]}  Rh7 {[%clk 0:00:08]} 0-1


[Site "https://www.chess.com"]

[Event "Titled Tuesday Blitz January 18 2022"]
[White "Carbone, Diego"]
[Black "Wong, Yinn Long"]
[WhiteFideId "3002179"]
[BlackFideId "5707684"]
[WhiteElo "2199"]
[BlackElo "2055"]
[Result "0-1"]
[Round "10"]
[TimeControl "180+1"]
[Date "2022.01.18"]
[WhiteClock "0:00:02"]
[BlackClock "0:00:48"]

1. d4 {[%clk 0:03:00]}  e6 {[%clk 0:02:59]} 2. c4 {[%clk 0:03:00]}  Nf6 {[%clk 0:03:00]} 3. Nc3 {[%clk 0:03:00]}  Bb4 {[%clk 0:03:00]} 4. Qc2 {[%clk 0:03:00]}  d6 {[%clk 0:02:52]} 5. a3 {[%clk 0:02:59]}  Bxc3+ {[%clk 0:02:52]} 6. Qxc3 {[%clk 0:03:00]}  O-O {[%clk 0:02:52]} 7. Bg5 {[%clk 0:03:00]}  Nbd7 {[%clk 0:02:52]} 8. e3 {[%clk 0:02:59]}  h6 {[%clk 0:02:52]} 9. Bh4 {[%clk 0:02:57]}  b6 {[%clk 0:02:52]} 10. Bd3 {[%clk 0:02:52]}  Bb7 {[%clk 0:02:52]} 11. Nf3 {[%clk 0:02:51]}  Qe7 {[%clk 0:02:52]} 12. O-O {[%clk 0:02:37]}  e5 {[%clk 0:02:52]} 13. Bxf6 {[%clk 0:02:27]}  Qxf6 {[%clk 0:02:48]} 14. dxe5 {[%clk 0:02:27]}  dxe5 {[%clk 0:02:42]} 15. Nd2 {[%clk 0:02:20]}  Nc5 {[%clk 0:02:28]} 16. Be2 {[%clk 0:02:17]}  Rad8 {[%clk 0:02:23]} 17. Rad1 {[%clk 0:02:10]}  Ne6 {[%clk 0:02:08]} 18. Nf3 {[%clk 0:02:02]}  Bxf3 {[%clk 0:02:07]} 19. Bxf3 {[%clk 0:02:01]}  Ng5 {[%clk 0:02:05]} 20. Be2 {[%clk 0:01:53]}  Ne4 {[%clk 0:02:05]} 21. Qc2 {[%clk 0:01:48]}  Rxd1 {[%clk 0:02:02]} 22. Bxd1 {[%clk 0:01:45]}  Nd6 {[%clk 0:01:56]} 23. c5 {[%clk 0:01:38]}  Nf5 {[%clk 0:01:52]} 24. cxb6 {[%clk 0:01:34]}  cxb6 {[%clk 0:01:53]} 25. Bf3 {[%clk 0:01:31]}  Nh4 {[%clk 0:01:52]} 26. Be4 {[%clk 0:01:31]}  Rd8 {[%clk 0:01:38]} 27. Rd1 {[%clk 0:01:29]}  Rxd1+ {[%clk 0:01:18]} 28. Qxd1 {[%clk 0:01:29]}  g6 {[%clk 0:01:19]} 29. Qd7 {[%clk 0:01:16]}  a5 {[%clk 0:01:18]} 30. g3 {[%clk 0:01:14]}  Nf3+ {[%clk 0:01:16]} 31. Bxf3 {[%clk 0:01:14]}  Qxf3 {[%clk 0:01:17]} 32. Qd8+ {[%clk 0:01:13]}  Kg7 {[%clk 0:01:16]} 33. Qxb6 {[%clk 0:01:13]}  Qd1+ {[%clk 0:01:16]} 34. Kg2 {[%clk 0:01:13]}  Qd5+ {[%clk 0:01:15]} 35. f3 {[%clk 0:00:56]}  a4 {[%clk 0:01:12]} 36. Qb4 {[%clk 0:00:45]}  Qc6 {[%clk 0:01:12]} 37. Qc3 {[%clk 0:00:38]}  Qd5 {[%clk 0:01:09]} 38. Kf2 {[%clk 0:00:35]}  Kh7 {[%clk 0:01:06]} 39. Qb4 {[%clk 0:00:26]}  Qc6 {[%clk 0:01:04]} 40. Qc3 {[%clk 0:00:16]}  Qd5 {[%clk 0:01:04]} 41. Kg2 {[%clk 0:00:15]}  g5 {[%clk 0:01:03]} 42. h3 {[%clk 0:00:16]}  Qd1 {[%clk 0:00:53]} 43. g4 {[%clk 0:00:09]}  Qe2+ {[%clk 0:00:49]} 44. Kg3 {[%clk 0:00:09]}  Qf1 {[%clk 0:00:50]} 45. Qc2+ {[%clk 0:00:07]}  Kg7 {[%clk 0:00:49]} 46. Qg2 {[%clk 0:00:03]}  Qc1 {[%clk 0:00:50]} 47. Qf2 {[%clk 0:00:02]}  Qh1 {[%clk 0:00:48]} 0-1


[Site "https://www.chess.com"]

[Event "Titled Tuesday Blitz January 18 2022"]
[White "Concio, Michael Jr."]
[Black "Zhigalko, Sergei"]
[WhiteFideId "5217873"]
[BlackFideId "13502956"]
[WhiteElo "1896"]
[BlackElo "2662"]
[Result "0-1"]
[Round "10"]
[TimeControl "180+1"]
[Date "2022.01.18"]
[WhiteClock "0:00:03"]
[BlackClock "0:00:02"]

1. e4 {[%clk 0:02:58]}  c5 {[%clk 0:02:59]} 2. Ne2 {[%clk 0:02:58]}  Nc6 {[%clk 0:02:56]} 3. Nbc3 {[%clk 0:02:57]}  Nf6 {[%clk 0:02:54]} 4. g3 {[%clk 0:02:52]}  g6 {[%clk 0:02:46]} 5. Bg2 {[%clk 0:02:51]}  Bg7 {[%clk 0:02:47]} 6. d3 {[%clk 0:02:51]}  d6 {[%clk 0:02:43]} 7. h3 {[%clk 0:02:49]}  Rb8 {[%clk 0:02:42]} 8. Be3 {[%clk 0:02:42]}  b5 {[%clk 0:02:36]} 9. a3 {[%clk 0:02:42]}  a5 {[%clk 0:02:36]} 10. Qd2 {[%clk 0:02:13]}  b4 {[%clk 0:02:32]} 11. axb4 {[%clk 0:02:01]}  axb4 {[%clk 0:02:31]} 12. Nd5 {[%clk 0:02:01]}  Nxd5 {[%clk 0:02:13]} 13. exd5 {[%clk 0:02:02]}  Ne5 {[%clk 0:02:13]} 14. f4 {[%clk 0:01:19]}  Nd7 {[%clk 0:02:11]} 15. c3 {[%clk 0:01:15]}  bxc3 {[%clk 0:01:59]} 16. bxc3 {[%clk 0:01:16]}  Nf6 {[%clk 0:01:47]} 17. O-O {[%clk 0:01:10]}  Qb6 {[%clk 0:01:25]} 18. g4 {[%clk 0:00:43]}  Qb2 {[%clk 0:01:18]} 19. Ng3 {[%clk 0:00:37]}  h5 {[%clk 0:01:05]} 20. g5 {[%clk 0:00:35]}  Nd7 {[%clk 0:01:00]} 21. Ne4 {[%clk 0:00:18]}  Qxd2 {[%clk 0:00:40]} 22. Bxd2 {[%clk 0:00:19]}  Nb6 {[%clk 0:00:41]} 23. Rfb1 {[%clk 0:00:13]}  O-O {[%clk 0:00:34]} 24. Ra7 {[%clk 0:00:13]}  Re8 {[%clk 0:00:33]} 25. c4 {[%clk 0:00:13]}  Bd4+ {[%clk 0:00:23]} 26. Kf1 {[%clk 0:00:13]}  Bf5 {[%clk 0:00:24]} 27. Ke2 {[%clk 0:00:08]}  Kf8 {[%clk 0:00:15]} 28. h4 {[%clk 0:00:07]}  Nd7 {[%clk 0:00:10]} 29. Rxb8 {[%clk 0:00:06]}  Rxb8 {[%clk 0:00:11]} 30. Ra2 {[%clk 0:00:04]}  Rb3 {[%clk 0:00:07]} 31. Be3 {[%clk 0:00:04]}  Bxe3 {[%clk 0:00:03]} 32. Kxe3 {[%clk 0:00:04]}  Nb6 {[%clk 0:00:04]} 33. Kd2 {[%clk 0:00:02]}  Kg7 {[%clk 0:00:02]} 34. Kc2 {[%clk 0:00:02]}  Rb4 {[%clk 0:00:02]} 35. Ra7 {[%clk 0:00:02]}  Kf8 {[%clk 0:00:02]} 36. Ra6 {[%clk 0:00:02]}  Na4 {[%clk 0:00:02]} 37. Ra8+ {[%clk 0:00:02]}  Kg7 {[%clk 0:00:02]} 38. Bf1 {[%clk 0:00:01]}  Rb2+ {[%clk 0:00:02]} 39. Kc1 {[%clk 0:00:02]}  Ra2 {[%clk 0:00:02]} 40. Kb1 {[%clk 0:00:02]}  Nc3+ {[%clk 0:00:02]} 41. Nxc3 {[%clk 0:00:03]}  Rxa8 {[%clk 0:00:02]} 42. Kb2 {[%clk 0:00:03]}  Rb8+ {[%clk 0:00:03]} 43. Kc2 {[%clk 0:00:04]}  Kf8 {[%clk 0:00:03]} 44. Bg2 {[%clk 0:00:03]}  Ra8 {[%clk 0:00:03]} 45. Kb2 {[%clk 0:00:03]}  Ke8 {[%clk 0:00:04]} 46. Be4 {[%clk 0:00:03]}  Bxe4 {[%clk 0:00:03]} 47. dxe4 {[%clk 0:00:02]}  Kd7 {[%clk 0:00:03]} 48. f5 {[%clk 0:00:02]}  Kc7 {[%clk 0:00:03]} 49. Ne2 {[%clk 0:00:02]}  Ra4 {[%clk 0:00:02]} 50. Kb3 {[%clk 0:00:03]}  Ra1 {[%clk 0:00:02]} 51. fxg6 {[%clk 0:00:02]}  fxg6 {[%clk 0:00:03]} 52. Nf4 {[%clk 0:00:03]}  Re1 {[%clk 0:00:02]} 53. Nxg6 {[%clk 0:00:02]}  Re3+ {[%clk 0:00:03]} 54. Kc2 {[%clk 0:00:02]}  Rxe4 {[%clk 0:00:04]} 55. Kd3 {[%clk 0:00:03]}  Rd4+ {[%clk 0:00:03]} 56. Kc3 {[%clk 0:00:04]}  Kd8 {[%clk 0:00:02]} 57. Nf8 {[%clk 0:00:02]}  Rxh4 {[%clk 0:00:02]} 58. g6 {[%clk 0:00:02]}  Rg4 {[%clk 0:00:02]} 59. Ne6+ {[%clk 0:00:01]}  Kc8 {[%clk 0:00:01]} 60. g7 {[%clk 0:00:01]}  h4 {[%clk 0:00:02]} 61. Kd3 {[%clk 0:00:01]}  h3 {[%clk 0:00:02]} 62. Ke3 {[%clk 0:00:02]}  h2 {[%clk 0:00:03]} 63. Kf3 {[%clk 0:00:03]}  Rg6 {[%clk 0:00:02]} 0-1


[Site "https://www.chess.com"]

[Event "Titled Tuesday Blitz January 18 2022"]
[White "Doluhanova, Evgeniya"]
[Black "Shipov, Sergei"]
[WhiteFideId "14112035"]
[BlackFideId "4113624"]
[WhiteElo "2076"]
[BlackElo "2765"]
[Result "0-1"]
[Round "10"]
[TimeControl "180+1"]
[Date "2022.01.18"]
[WhiteClock "0:00:09"]
[BlackClock "0:00:17"]

1. e4 {[%clk 0:03:00]}  e6 {[%clk 0:02:59]} 2. d4 {[%clk 0:03:00]}  d5 {[%clk 0:02:59]} 3. Bd3 {[%clk 0:02:56]}  dxe4 {[%clk 0:02:57]} 4. Bxe4 {[%clk 0:02:56]}  Nf6 {[%clk 0:02:58]} 5. Bf3 {[%clk 0:02:56]}  c5 {[%clk 0:02:57]} 6. Ne2 {[%clk 0:02:56]}  Nc6 {[%clk 0:02:58]} 7. Be3 {[%clk 0:02:56]}  cxd4 {[%clk 0:02:58]} 8. Nxd4 {[%clk 0:02:56]}  Ne5 {[%clk 0:02:58]} 9. Nd2 {[%clk 0:02:53]}  a6 {[%clk 0:02:54]} 10. Qe2 {[%clk 0:02:51]}  Qc7 {[%clk 0:02:47]} 11. O-O-O {[%clk 0:02:48]}  Bd7 {[%clk 0:02:47]} 12. Bf4 {[%clk 0:02:38]}  Bd6 {[%clk 0:02:47]} 13. Bg3 {[%clk 0:02:27]}  O-O {[%clk 0:02:44]} 14. Ne4 {[%clk 0:02:25]}  Nxe4 {[%clk 0:02:41]} 15. Bxe4 {[%clk 0:02:23]}  Rac8 {[%clk 0:02:33]} 16. Kb1 {[%clk 0:02:20]}  b5 {[%clk 0:02:30]} 17. Rhe1 {[%clk 0:02:17]}  Nc4 {[%clk 0:02:19]} 18. Bxd6 {[%clk 0:02:11]}  Nxd6 {[%clk 0:02:18]} 19. Qh5 {[%clk 0:01:50]}  Nxe4 {[%clk 0:02:02]} 20. Rxe4 {[%clk 0:01:49]}  Rfd8 {[%clk 0:01:54]} 21. Rh4 {[%clk 0:01:44]}  h6 {[%clk 0:01:54]} 22. Rd3 {[%clk 0:01:23]}  Qc5 {[%clk 0:01:41]} 23. Qxc5 {[%clk 0:01:13]}  Rxc5 {[%clk 0:01:40]} 24. Nb3 {[%clk 0:01:13]}  Rc7 {[%clk 0:01:33]} 25. Rhd4 {[%clk 0:01:13]}  Kf8 {[%clk 0:01:32]} 26. Rd6 {[%clk 0:01:09]}  Ke7 {[%clk 0:01:03]} 27. Rxa6 {[%clk 0:01:08]}  Rdc8 {[%clk 0:01:04]} 28. Rad6 {[%clk 0:00:48]}  b4 {[%clk 0:00:58]} 29. Rd2 {[%clk 0:00:43]}  Bc6 {[%clk 0:00:55]} 30. f3 {[%clk 0:00:36]}  g5 {[%clk 0:00:53]} 31. R6d4 {[%clk 0:00:36]}  Rb7 {[%clk 0:00:21]} 32. Rc4 {[%clk 0:00:34]}  Bd7 {[%clk 0:00:21]} 33. Rxc8 {[%clk 0:00:33]}  Bxc8 {[%clk 0:00:22]} 34. Nc5 {[%clk 0:00:32]}  Rb5 {[%clk 0:00:21]} 35. Ne4 {[%clk 0:00:30]}  Bd7 {[%clk 0:00:20]} 36. Rd4 {[%clk 0:00:20]}  f5 {[%clk 0:00:19]} 37. Nd2 {[%clk 0:00:19]}  Re5 {[%clk 0:00:19]} 38. b3 {[%clk 0:00:19]}  Re2 {[%clk 0:00:18]} 39. g3 {[%clk 0:00:13]}  Rxh2 {[%clk 0:00:18]} 40. Nc4 {[%clk 0:00:13]}  h5 {[%clk 0:00:17]} 41. Ne5 {[%clk 0:00:13]}  Be8 {[%clk 0:00:17]} 42. Rxb4 {[%clk 0:00:13]}  h4 {[%clk 0:00:18]} 43. gxh4 {[%clk 0:00:12]}  gxh4 {[%clk 0:00:18]} 44. Rb7+ {[%clk 0:00:10]}  Kd6 {[%clk 0:00:18]} 45. Ng6 {[%clk 0:00:09]}  Bxg6 {[%clk 0:00:17]} 0-1


[Site "https://www.chess.com"]

[Event "Titled Tuesday Blitz January 18 2022"]
[White "Firat, Burak"]
[Black "Kosakowski, Jakub"]
[WhiteFideId "6305881"]
[BlackFideId "1185080"]
[WhiteElo "2419"]
[BlackElo "2476"]
[Result "1-0"]
[Round "10"]
[TimeControl "180+1"]
[Date "2022.01.18"]
[WhiteClock "0:00:18"]
[BlackClock "0:00:05"]

1. Nf3 {[%clk 0:03:00]}  Nf6 {[%clk 0:02:59]} 2. c4 {[%clk 0:03:01]}  e6 {[%clk 0:02:59]} 3. g3 {[%clk 0:03:02]}  d5 {[%clk 0:02:59]} 4. Bg2 {[%clk 0:03:03]}  dxc4 {[%clk 0:03:00]} 5. O-O {[%clk 0:03:04]}  Nbd7 {[%clk 0:02:59]} 6. Na3 {[%clk 0:03:03]}  Bxa3 {[%clk 0:02:52]} 7. bxa3 {[%clk 0:03:04]}  O-O {[%clk 0:02:52]} 8. a4 {[%clk 0:03:04]}  c6 {[%clk 0:02:46]} 9. Ba3 {[%clk 0:03:02]}  Re8 {[%clk 0:02:46]} 10. Qc2 {[%clk 0:03:02]}  Nb6 {[%clk 0:02:45]} 11. Rab1 {[%clk 0:02:55]}  e5 {[%clk 0:02:43]} 12. a5 {[%clk 0:02:26]}  Nbd5 {[%clk 0:02:41]} 13. Qxc4 {[%clk 0:02:26]}  Qxa5 {[%clk 0:02:39]} 14. Bb2 {[%clk 0:02:22]}  Nb6 {[%clk 0:02:16]} 15. Qc2 {[%clk 0:02:17]}  Qxa2 {[%clk 0:02:05]} 16. d3 {[%clk 0:02:05]}  e4 {[%clk 0:01:39]} 17. dxe4 {[%clk 0:01:51]}  Nxe4 {[%clk 0:01:37]} 18. Nd4 {[%clk 0:01:51]}  Nf6 {[%clk 0:01:31]} 19. Rfc1 {[%clk 0:01:42]}  Na4 {[%clk 0:01:13]} 20. Nxc6 {[%clk 0:01:30]}  Nxb2 {[%clk 0:00:46]} 21. Rxb2 {[%clk 0:01:26]}  Qa3 {[%clk 0:00:46]} 22. Nd4 {[%clk 0:01:11]}  a6 {[%clk 0:00:45]} 23. e3 {[%clk 0:01:10]}  Qe7 {[%clk 0:00:41]} 24. Qb3 {[%clk 0:00:56]}  Ne4 {[%clk 0:00:39]} 25. Rbc2 {[%clk 0:00:55]}  h6 {[%clk 0:00:17]} 26. Rc7 {[%clk 0:00:54]}  Qf6 {[%clk 0:00:18]} 27. Bxe4 {[%clk 0:00:53]}  Rxe4 {[%clk 0:00:17]} 28. Rxc8+ {[%clk 0:00:53]}  Rxc8 {[%clk 0:00:17]} 29. Rxc8+ {[%clk 0:00:53]}  Kh7 {[%clk 0:00:18]} 30. Qxb7 {[%clk 0:00:44]}  Re7 {[%clk 0:00:15]} 31. Qb1+ {[%clk 0:00:40]}  g6 {[%clk 0:00:15]} 32. Rc6 {[%clk 0:00:39]}  Qe5 {[%clk 0:00:16]} 33. Rxa6 {[%clk 0:00:39]}  Rc7 {[%clk 0:00:15]} 34. Ra1 {[%clk 0:00:35]}  h5 {[%clk 0:00:14]} 35. h4 {[%clk 0:00:35]}  Qd5 {[%clk 0:00:12]} 36. Qf1 {[%clk 0:00:34]}  Rc3 {[%clk 0:00:12]} 37. Qg2 {[%clk 0:00:33]}  Qc5 {[%clk 0:00:10]} 38. Qf3 {[%clk 0:00:32]}  Qc4 {[%clk 0:00:10]} 39. Ra7 {[%clk 0:00:24]}  Rc1+ {[%clk 0:00:10]} 40. Kh2 {[%clk 0:00:24]}  Kg7 {[%clk 0:00:08]} 41. Qf4 {[%clk 0:00:21]}  Rf1 {[%clk 0:00:05]} 42. Nf5+ {[%clk 0:00:18]} 1-0


[Site "https://www.chess.com"]

[Event "Titled Tuesday Blitz January 18 2022"]
[White "Gelman, Alexander"]
[Black "Prieto Aranguren, Alain"]
[WhiteFideId "4118316"]
[BlackFideId "2268906"]
[WhiteElo "2375"]
[BlackElo "2235"]
[Result "1-0"]
[Round "10"]
[TimeControl "180+1"]
[Date "2022.01.18"]
[WhiteClock "0:00:06"]
[BlackClock "0:00:01"]

1. d4 {[%clk 0:03:00]}  e5 {[%clk 0:02:57]} 2. dxe5 {[%clk 0:03:00]}  f6 {[%clk 0:02:57]} 3. Nf3 {[%clk 0:02:59]}  Nc6 {[%clk 0:02:38]} 4. exf6 {[%clk 0:02:59]}  Nxf6 {[%clk 0:02:34]} 5. Bg5 {[%clk 0:02:56]}  Bc5 {[%clk 0:02:29]} 6. e3 {[%clk 0:02:55]}  d5 {[%clk 0:02:22]} 7. Nc3 {[%clk 0:02:52]}  Be6 {[%clk 0:02:17]} 8. Bb5 {[%clk 0:02:47]}  O-O {[%clk 0:02:13]} 9. Bxc6 {[%clk 0:02:38]}  bxc6 {[%clk 0:02:12]} 10. Nd4 {[%clk 0:02:35]}  Bd7 {[%clk 0:02:06]} 11. Qd3 {[%clk 0:02:31]}  Rb8 {[%clk 0:02:00]} 12. Nb3 {[%clk 0:02:21]}  Bd6 {[%clk 0:01:54]} 13. h3 {[%clk 0:02:16]}  a5 {[%clk 0:01:50]} 14. O-O-O {[%clk 0:01:56]}  h6 {[%clk 0:01:48]} 15. Bh4 {[%clk 0:01:47]}  a4 {[%clk 0:01:35]} 16. Nxa4 {[%clk 0:01:44]}  Rb4 {[%clk 0:01:33]} 17. Bxf6 {[%clk 0:01:38]}  Qxf6 {[%clk 0:01:33]} 18. Nc3 {[%clk 0:01:36]}  Ra8 {[%clk 0:01:22]} 19. Nxd5 {[%clk 0:01:28]}  cxd5 {[%clk 0:01:15]} 20. Qxd5+ {[%clk 0:01:28]}  Kh7 {[%clk 0:01:13]} 21. Qxa8 {[%clk 0:01:27]}  Qxf2 {[%clk 0:01:05]} 22. Qf3 {[%clk 0:01:21]}  Qh4 {[%clk 0:01:04]} 23. Rd4 {[%clk 0:01:18]}  Qe7 {[%clk 0:00:57]} 24. Rxb4 {[%clk 0:01:15]}  Bxb4 {[%clk 0:00:55]} 25. Rd1 {[%clk 0:01:15]}  Bd6 {[%clk 0:00:47]} 26. Kb1 {[%clk 0:01:13]}  Be8 {[%clk 0:00:41]} 27. Nd4 {[%clk 0:01:09]}  Be5 {[%clk 0:00:36]} 28. a3 {[%clk 0:01:07]}  Bf6 {[%clk 0:00:31]} 29. g4 {[%clk 0:01:03]}  Bf7 {[%clk 0:00:28]} 30. Qf5+ {[%clk 0:00:50]}  Kg8 {[%clk 0:00:22]} 31. Qf4 {[%clk 0:00:40]}  Bg6 {[%clk 0:00:17]} 32. Nf5 {[%clk 0:00:38]}  Qc5 {[%clk 0:00:10]} 33. Qb4 {[%clk 0:00:25]}  Qe5 {[%clk 0:00:09]} 34. c3 {[%clk 0:00:20]}  h5 {[%clk 0:00:06]} 35. Qf4 {[%clk 0:00:18]}  Qb5 {[%clk 0:00:06]} 36. Ka1 {[%clk 0:00:10]}  hxg4 {[%clk 0:00:05]} 37. hxg4 {[%clk 0:00:10]}  Qb3 {[%clk 0:00:05]} 38. Rd7 {[%clk 0:00:08]}  Bf7 {[%clk 0:00:03]} 39. Rxf7 {[%clk 0:00:08]}  Kxf7 {[%clk 0:00:02]} 40. Qxc7+ {[%clk 0:00:08]}  Kg6 {[%clk 0:00:02]} 41. Qd6 {[%clk 0:00:06]}  Kg5 {[%clk 0:00:01]} 42. Nd4 {[%clk 0:00:06]}  Kxg4 {[%clk 0:00:01]} 43. Nxb3 {[%clk 0:00:06]} 1-0


[Site "https://www.chess.com"]

[Event "Titled Tuesday Blitz January 18 2022"]
[White "Gvanceladze, Anna"]
[Black "Lomaia, Diana"]
[WhiteFideId "4113721"]
[BlackFideId "13612476"]
[WhiteElo "2048"]
[BlackElo "1744"]
[Result "0-1"]
[Round "10"]
[TimeControl "180+1"]
[Date "2022.01.18"]
[WhiteClock "0:00:03"]
[BlackClock "0:00:46"]

1. e4 {[%clk 0:03:00]}  c5 {[%clk 0:02:59]} 2. Nf3 {[%clk 0:03:00]}  Nc6 {[%clk 0:02:59]} 3. Nc3 {[%clk 0:02:59]}  e5 {[%clk 0:02:59]} 4. Bb5 {[%clk 0:02:55]}  d6 {[%clk 0:02:57]} 5. O-O {[%clk 0:02:54]}  Ne7 {[%clk 0:02:54]} 6. a3 {[%clk 0:02:54]}  g6 {[%clk 0:02:54]} 7. d3 {[%clk 0:02:51]}  Bg7 {[%clk 0:02:54]} 8. Bg5 {[%clk 0:02:49]}  f6 {[%clk 0:02:48]} 9. Be3 {[%clk 0:02:49]}  Be6 {[%clk 0:02:48]} 10. Qd2 {[%clk 0:02:48]}  O-O {[%clk 0:02:46]} 11. Rab1 {[%clk 0:02:40]}  a6 {[%clk 0:02:45]} 12. Bc4 {[%clk 0:02:40]}  Bxc4 {[%clk 0:02:46]} 13. dxc4 {[%clk 0:02:39]}  Nd4 {[%clk 0:02:46]} 14. Ne1 {[%clk 0:02:32]}  f5 {[%clk 0:02:44]} 15. Bg5 {[%clk 0:02:26]}  Bf6 {[%clk 0:02:42]} 16. Bxf6 {[%clk 0:02:13]}  Rxf6 {[%clk 0:02:40]} 17. f3 {[%clk 0:01:41]}  b5 {[%clk 0:02:30]} 18. Nd5 {[%clk 0:01:37]}  Nxd5 {[%clk 0:02:26]} 19. cxd5 {[%clk 0:01:37]}  fxe4 {[%clk 0:02:15]} 20. c3 {[%clk 0:01:12]}  e3 {[%clk 0:02:11]} 21. Qxe3 {[%clk 0:01:10]}  Nf5 {[%clk 0:02:11]} 22. Qd2 {[%clk 0:00:58]}  c4 {[%clk 0:02:05]} 23. Nc2 {[%clk 0:00:56]}  Qb6+ {[%clk 0:02:03]} 24. Kh1 {[%clk 0:00:56]}  Raf8 {[%clk 0:01:58]} 25. Rbe1 {[%clk 0:00:52]}  g5 {[%clk 0:01:54]} 26. Ne3 {[%clk 0:00:49]}  Nxe3 {[%clk 0:01:50]} 27. Qxe3 {[%clk 0:00:47]}  Qxe3 {[%clk 0:01:49]} 28. Rxe3 {[%clk 0:00:47]}  Rf4 {[%clk 0:01:44]} 29. g3 {[%clk 0:00:40]}  R4f5 {[%clk 0:01:42]} 30. h3 {[%clk 0:00:37]}  h5 {[%clk 0:01:41]} 31. Kg2 {[%clk 0:00:37]}  Kg7 {[%clk 0:01:40]} 32. Ra1 {[%clk 0:00:34]}  g4 {[%clk 0:01:36]} 33. hxg4 {[%clk 0:00:34]}  hxg4 {[%clk 0:01:35]} 34. a4 {[%clk 0:00:21]}  Rxf3 {[%clk 0:01:24]} 35. Rxf3 {[%clk 0:00:20]}  gxf3+ {[%clk 0:01:22]} 36. Kf2 {[%clk 0:00:21]}  e4 {[%clk 0:01:21]} 37. axb5 {[%clk 0:00:21]}  axb5 {[%clk 0:01:22]} 38. Ke3 {[%clk 0:00:19]}  Re8 {[%clk 0:01:12]} 39. Ra6 {[%clk 0:00:17]}  Kf6 {[%clk 0:00:48]} 40. Rxd6+ {[%clk 0:00:14]}  Ke5 {[%clk 0:00:48]} 41. Rb6 {[%clk 0:00:10]}  Rf8 {[%clk 0:00:48]} 42. Kf2 {[%clk 0:00:05]}  e3+ {[%clk 0:00:47]} 43. Kxe3 {[%clk 0:00:06]}  f2 {[%clk 0:00:47]} 44. Rxb5 {[%clk 0:00:03]}  f1=Q {[%clk 0:00:46]} 0-1


[Site "https://www.chess.com"]